bitfinex/quotes_ETHUSD_20251031
["timestamp","ask_amount","ask_price","bid_price","bid_amount"]
[1761931432563,0.147039,3823.2,3823.1,8.61081209]
[1761931434890,0.002,3823.6,3823.5,2.61540473]
[1761931435116,0.002,3823.6,3823.5,4.47143877]
[1761931435471,0.002,3823.6,3823.5,4.90163877]
[1761931435703,0.002,3823.6,3823.5,9.58216924]
[1761931435899,0.002,3823.6,3823.5,9.9862152]
[1761931436571,0.002,3823.6,3823.5,9.5560152]
[1761931436767,0.4594,3823.6,3823.5,3.72496097]
[1761931437693,0.4594,3823.6,3823.5,6.3403657]
[1761931438321,0.002,3823.6,3823.5,6.3403657]
[1761931438620,0.002,3823.6,3823.5,6.7705657]
[1761931438823,0.002,3823.6,3823.5,8.13937586]
[1761931439198,0.002,3823.6,3823.5,7.70917586]
[1761931440232,0.4594,3823.6,3823.5,6.3403657]
[1761931440525,0.002,3823.6,3823.5,6.7705657]
[1761931440728,0.002,3823.6,3823.5,6.3403657]
[1761931441327,0.002,3823.6,3823.5,6.7705657]
[1761931441638,0.002,3823.6,3823.5,7.76846526]
[1761931442103,0.002,3823.6,3823.5,8.19866526]
[1761931442306,0.002,3824.0,3823.9,2.61513114]
[1761931442485,0.01,3824.7,3824.6,2.61465251]
[1761931443291,0.4674,3824.7,3824.1,3.72296097]
[1761931443593,0.4094,3824.6,3824.5,2.61467679]
[1761931443832,0.01,3824.7,3824.6,2.61465251]
[1761931444020,0.01,3824.7,3824.6,2.64079903]
[1761931444567,0.01,3824.7,3824.6,6.36376]
[1761931444691,0.01,3824.7,3824.6,6.76781348]
[1761931444891,0.01,3824.7,3824.6,6.33761348]
[1761931445399,0.01,3824.7,3824.6,9.07577322]
[1761931445895,0.01,3824.7,3824.6,8.64557322]
[1761931446727,0.01,3824.7,3824.6,9.07577322]
[1761931446995,0.01,3824.7,3824.6,8.64557322]
[1761931447190,0.42006482,3824.7,3824.6,8.64557322]
[1761931447730,0.42006482,3824.7,3824.6,9.07577322]
[1761931448376,0.42006482,3824.7,3824.6,8.64557322]
[1761931450328,0.42006482,3824.7,3824.6,9.07577322]
[1761931451131,0.42006482,3824.7,3824.6,9.50597322]
[1761931451524,0.42006482,3824.7,3824.6,9.07577322]
[1761931452069,0.42006482,3824.7,3824.6,9.50597322]
[1761931452261,0.002,3825.5,3825.4,2.61410571]
[1761931452579,0.002,3825.5,3825.4,5.91700186]
[1761931453871,0.002,3825.5,3825.4,8.61627101]
[1761931454054,0.002,3825.5,3825.4,9.04647101]
[1761931454429,0.002,3825.5,3825.4,5.74357486]
[1761931454830,0.002,3825.5,3825.4,4.88317486]
[1761931455037,0.002,3825.5,3825.4,5.31337486]
[1761931455380,0.002,3825.5,3825.4,5.87397486]
[1761931455860,0.002,3825.5,3825.4,5.44377486]
[1761931456063,0.002,3825.5,3825.4,5.01357486]
[1761931456563,0.002,3825.5,3825.4,5.46991591]
[1761931456768,0.002,3825.5,3825.4,5.44377486]
[1761931457531,0.002,3825.5,3825.4,4.04409486]
[1761931457731,0.002,3825.5,3825.4,3.17470571]
[1761931458465,0.002,3825.5,3825.4,3.20084676]
[1761931458865,0.002,3825.5,3825.4,2.74450571]
[1761931459230,0.942,3825.5,3825.4,2.61410571]
[1761931459430,7.39829,3825.4,3825.1,0.1304]
[1761931459657,10.686417,3825.1,3824.1,3.30289615]
[1761931459878,10.686417,3825.1,3824.0,0.001]
[1761931459879,0.4247,3824.9,3824.0,0.001]
[1761931460165,0.4247,3824.9,3824.0,0.02715062]
[1761931460365,0.002,3825.5,3825.1,2.61431073]
[1761931460565,0.002,3825.5,3824.8,2.61450443]
[1761931460566,9.128674,3825.1,3824.8,2.61450443]
[1761931460767,0.6094,3824.9,3824.8,4.01419579]
[1761931461085,0.6094,3824.9,3824.3,3.30289615]
[1761931461383,1.0948,3824.9,3824.3,3.30289615]
[1761931461577,1.0948,3824.9,3824.8,2.61451579]
[1761931461880,0.4543,3824.4,3824.0,0.001]
[1761931462081,0.4543,3824.4,3824.3,2.61485762]
[1761931462282,0.4742,3824.3,3824.0,0.001]
[1761931462584,0.4742,3824.3,3824.2,2.61492599]
[1761931463088,0.1851,3824.9,3824.0,0.001]
[1761931463238,0.4002,3824.1,3824.0,2.61606276]
[1761931463438,0.1851,3824.9,3824.2,2.61492599]
[1761931463738,0.4742,3824.7,3824.5,2.6147182]
[1761931463975,0.4742,3824.7,3824.2,2.61492049]
[1761931464144,0.49,3824.3,3824.2,2.61492599]
[1761931464707,0.9642,3824.3,3824.0,0.001]
[1761931464838,0.4002,3824.1,3824.0,0.001]
[1761931465039,0.4002,3824.1,3824.0,3.30389615]
[1761931465040,0.8744,3824.1,3824.0,3.30389615]
[1761931465238,0.8744,3824.1,3824.0,5.91895891]
[1761931465493,0.4742,3824.5,3824.1,2.61499437]
[1761931465638,0.1851,3824.9,3824.2,0.02614925]
[1761931465976,0.4742,3824.8,3824.6,2.61464312]
[1761931466378,0.49,3824.7,3824.4,2.61477373]
[1761931466585,0.4742,3824.8,3824.4,2.61478924]
[1761931466586,0.4002,3824.5,3824.4,2.61478924]
[1761931466786,0.41012566,3825.4,3824.5,3.89466469]
[1761931466787,0.4742,3825.4,3824.5,3.89466469]
[1761931466936,0.4742,3825.4,3825.0,2.61432717]
[1761931467309,0.4742,3825.4,3825.0,3.30289615]
[1761931467310,3.561968,3825.3,3825.0,3.30289615]
[1761931467610,5.510203,3825.1,3825.0,3.30289615]
[1761931468100,5.984403,3825.1,3825.0,3.30289615]
[1761931468458,8.451995,3825.1,3825.0,3.30289615]
[1761931469103,4.381705,3825.1,3825.0,3.30289615]
[1761931469391,0.9642,3825.1,3825.0,3.30289615]
[1761931470295,0.9642,3825.1,3825.0,5.91727523]
[1761931470671,0.9642,3825.1,3825.0,3.30289615]
[1761931471081,0.49,3825.1,3825.0,5.91727523]
[1761931471690,0.1304,3825.2,3825.1,2.61431073]
[1761931471892,0.002,3825.5,3825.4,2.61410571]
[1761931472496,0.002,3825.5,3825.4,3.07044676]
[1761931472794,0.002,3825.5,3825.4,3.50064676]
[1761931473157,0.002,3825.5,3825.4,3.04430571]
[1761931473354,0.002,3825.5,3825.4,3.62642506]
[1761931474213,0.002,3825.5,3825.4,3.65256611]
[1761931474370,0.002,3825.5,3825.4,4.08276611]
[1761931475884,0.002,3825.5,3825.4,4.05662506]
[1761931476109,0.002,3825.5,3825.4,3.62642506]
[1761931476407,0.002,3825.5,3825.4,4.05662506]
[1761931476615,0.002,3825.5,3825.4,4.08276611]
[1761931476774,0.002,3825.5,3825.4,5.48244611]
[1761931476985,0.002,3825.5,3825.4,5.45630506]
[1761931477502,0.002,3825.5,3825.4,15.12920121]
[1761931478809,0.002,3825.5,3825.4,14.69900121]
[1761931480133,0.002,3825.5,3825.4,8.75920121]
[1761931480279,0.002,3825.5,3825.4,5.45630506]
[1761931481183,1e-08,3826.5,3826.0,2.61369576]
[1761931481386,1e-08,3826.5,3826.4,4.44330253]
[1761931482079,1e-08,3826.5,3826.4,4.87350253]
[1761931482412,0.012,3827.7,3826.4,4.87350253]
[1761931482413,1e-08,3826.7,3826.6,2.61328594]
[1761931482728,0.012,3827.7,3826.8,2.61314936]
[1761931482877,0.012,3827.7,3827.6,4.01228319]
[1761931483082,0.012,3827.7,3827.6,4.59900922]
[1761931483723,0.1902,3828.6,3828.0,2.61233019]
[1761931483887,0.1902,3828.6,3828.0,3.00396321]
[1761931484285,0.1902,3828.6,3828.0,3.03008651]
[1761931484517,0.4742,3828.5,3828.0,3.00396321]
[1761931484823,0.01,3828.7,3828.0,4.85996651]
[1761931485039,0.01,3828.7,3828.0,5.56527051]
[1761931485183,0.01,3828.7,3828.0,5.53914721]
[1761931485694,1e-08,3828.7,3828.0,5.53914721]
[1761931485894,1e-08,3828.7,3828.6,11.01336695]
[1761931486094,1e-08,3828.7,3828.6,2.6119208]
[1761931486499,1e-08,3828.7,3828.6,3.0421208]
[1761931487220,1e-08,3828.7,3828.6,3.4723208]
[1761931487526,1e-08,3828.7,3828.6,4.22072182]
[1761931487825,1e-08,3828.7,3828.6,10.68748797]
[1761931487995,0.01,3829.7,3829.6,2.61123877]
[1761931488198,0.01,3829.7,3829.6,3.04143877]
[1761931488395,0.01,3829.7,3829.6,5.04587768]
[1761931488596,0.01,3829.7,3829.6,5.0197653]
[1761931488922,0.01,3829.7,3829.6,4.5895653]
[1761931490203,0.01,3829.7,3829.6,5.04587768]
[1761931490432,0.01,3829.7,3829.6,5.47607768]
[1761931490751,0.01,3829.7,3829.6,5.4499653]
[1761931491107,0.01,3829.7,3829.6,5.0197653]
[1761931491801,0.01,3829.7,3829.6,5.4499653]
[1761931492242,0.01,3829.7,3829.6,5.8554693]
[1761931493707,0.01,3829.7,3829.6,5.0197653]
[1761931494331,0.012,3829.7,3829.6,5.0197653]
[1761931494925,0.012,3829.7,3829.6,5.4499653]
[1761931495131,0.012,3829.7,3829.6,5.5803653]
[1761931495451,0.002,3830.1,3830.0,2.61096605]
[1761931495621,0.002,3830.1,3830.0,4.59735571]
[1761931495822,0.002,3830.1,3830.0,5.02755571]
[1761931496208,0.002,3830.1,3830.0,5.43305971]
[1761931496509,0.002,3830.1,3830.0,5.40695005]
[1761931496709,0.002,3830.1,3830.0,6.93734418]
[1761931496939,0.002,3830.1,3830.0,6.10164018]
[1761931497539,0.002,3830.1,3830.0,6.53184018]
[1761931497747,0.002,3830.1,3830.0,6.10164018]
[1761931498454,0.002,3830.1,3830.0,6.53184018]
[1761931498623,0.002,3830.1,3830.0,6.10164018]
[1761931499170,0.9657,3830.1,3830.0,1.53008]
[1761931499312,0.002,3830.1,3830.0,4.14104605]
[1761931499518,0.002,3830.1,3830.0,4.57124605]
[1761931499712,0.002,3830.1,3830.0,5.28948015]
[1761931501349,0.002,3830.1,3830.0,5.58928015]
[1761931502456,0.6877,3832.0,3831.6,2.60987576]
[1761931502643,0.4762,3831.7,3831.6,2.60987576]
[1761931503655,0.9737,3831.7,3830.8,6.46676615]
[1761931503950,0.9737,3831.7,3830.7,2.61046635]
[1761931503951,0.651,3830.9,3830.7,2.61046635]
[1761931504152,0.1854,3830.9,3830.8,2.61042079]
[1761931504515,0.6516,3830.9,3830.8,2.61042079]
[1761931504718,1.1491,3830.9,3830.8,2.61042079]
[1761931504914,0.01,3831.7,3831.2,2.61013061]
[1761931504915,0.4975,3831.4,3831.2,2.61013061]
[1761931505113,0.4975,3831.4,3830.3,1.39968]
[1761931505413,0.4975,3831.4,3831.1,2.61021638]
[1761931505635,0.5075,3831.7,3831.2,0.02610148]
[1761931505840,0.4975,3831.6,3831.2,2.63619308]
[1761931506049,0.4662,3831.3,3831.2,2.63619308]
[1761931506463,0.4662,3831.3,3830.3,2.16120003]
[1761931506666,0.01,3831.7,3830.4,0.86279662]
[1761931506667,0.4056,3831.1,3830.4,0.86279662]
[1761931506882,0.4056,3831.1,3829.6,6.87227015]
[1761931506883,0.6516,3830.4,3829.1,0.01]
[1761931507043,0.6516,3830.4,3829.2,0.27552321]
[1761931507389,0.4975,3830.3,3829.2,0.27552321]
[1761931507687,0.4975,3830.3,3829.6,2.61118667]
[1761931507833,0.4975,3830.3,3829.1,0.01]
[1761931508178,0.4975,3830.3,3829.4,2.61135028]
[1761931508486,0.4975,3830.3,3829.1,0.28553718]
[1761931508708,0.4975,3830.3,3829.1,0.01]
[1761931509009,0.4975,3830.3,3829.3,1.39968]
[1761931509213,0.4975,3830.3,3829.2,2.61151154]
[1761931509214,0.4975,3830.3,3829.4,2.6113599]
[1761931509360,0.4975,3830.3,3829.1,0.01]
[1761931509557,0.83011426,3830.3,3829.1,0.01]
[1761931509772,0.4975,3830.3,3829.8,2.6110819]
[1761931509956,0.4975,3830.2,3829.9,0.02611034]
[1761931510157,0.4975,3830.2,3829.2,2.63758839]
[1761931510362,0.4975,3830.2,3830.1,2.61089788]
[1761931510602,0.1854,3830.4,3830.2,2.61082972]
[1761931510910,0.6829,3830.4,3830.3,0.02610761]
[1761931511087,3.339866,3830.4,3829.1,1.40968]
[1761931511394,1.0335,3830.3,3829.7,2.6111472]
[1761931511582,0.651,3829.8,3829.7,2.6111472]
[1761931511901,0.6279,3830.3,3830.1,2.61089788]
[1761931511902,0.4975,3830.2,3830.1,2.61089788]
[1761931512107,0.4975,3830.2,3829.7,0.1304]
[1761931512462,0.6516,3829.8,3829.1,0.01]
[1761931512683,0.6516,3829.8,3829.3,0.02611443]
[1761931512998,1.1491,3829.8,3829.2,0.02611511]
[1761931513364,1.1491,3829.8,3829.1,0.1437]
[1761931513662,0.4975,3829.7,3829.2,0.02611511]
[1761931514263,0.4975,3829.7,3829.4,3.30289615]
[1761931514462,0.4662,3829.5,3829.2,3.30289615]
[1761931514694,0.4975,3829.7,3829.2,3.30289615]
[1761931514903,0.4662,3829.3,3829.1,0.01]
[1761931515069,0.53014048,3829.6,3829.1,0.01]
[1761931515070,0.4056,3829.2,3829.1,0.01]
[1761931515495,0.9031,3829.2,3829.1,0.01]
[1761931516261,0.647,3829.8,3829.1,0.01]
[1761931516462,5.00953263,3829.7,3829.2,0.02611511]
[1761931516691,0.4944,3829.2,3829.1,0.01]
[1761931516899,0.956,3829.2,3829.1,0.01]
[1761931517275,0.956,3829.2,3828.6,0.001]
[1761931517276,16.432498,3829.1,3828.6,0.001]
[1761931517474,0.5938,3828.7,3828.6,0.001]
[1761931517980,1.0554,3828.7,3828.6,0.001]
[1761931519073,0.5938,3828.7,3828.6,2.6129208]
[1761931519273,0.5938,3828.7,3828.6,0.26500421]
[1761931519499,1.0554,3828.7,3828.6,0.001]
[1761931521600,13.298672,3828.7,3828.6,0.001]
[1761931521774,1.0554,3828.7,3828.6,0.001]
[1761931521977,0.40966725,3828.8,3828.7,2.61185258]
[1761931522496,0.4944,3828.8,3828.6,0.001]
[1761931522702,0.1304,3829.3,3829.2,2.61151154]
[1761931522876,0.1304,3829.3,3828.7,0.5706]
[1761931522877,0.1304,3829.3,3828.9,2.61170913]
[1761931523061,0.592,3829.3,3829.0,2.61163033]
[1761931523475,0.1304,3829.3,3829.1,2.61157974]
[1761931523696,0.1304,3829.3,3828.7,0.1304]
[1761931523896,0.5894,3829.3,3829.1,2.61156839]
[1761931524138,0.5894,3829.3,3829.2,2.61151154]
[1761931524500,0.5926,3829.3,3829.2,5.91440769]
[1761931524716,0.40973748,3829.5,3829.4,2.61137515]
[1761931524915,0.459,3829.5,3829.2,0.1304]
[1761931525225,0.4622,3829.3,3829.1,2.74196676]
[1761931525820,0.4622,3829.3,3829.2,2.61151154]
[1761931526510,0.1804,3829.9,3829.2,3.20822665]
[1761931526711,0.459,3829.8,3829.2,2.74188448]
[1761931527028,0.459,3829.8,3829.5,2.6112602]
[1761931527188,0.459,3829.8,3829.7,2.61117058]
[1761931527527,0.459,3830.2,3830.0,2.61096136]
[1761931527687,0.002,3830.3,3830.2,2.61082972]
[1761931527883,0.9232,3830.3,3829.3,0.48623913]
[1761931528125,0.4375,3830.2,3829.9,2.61098453]
[1761931528299,0.8965,3830.2,3829.3,0.48623913]
[1761931528499,0.4375,3830.2,3830.1,2.61089788]
[1761931528705,0.002,3830.3,3830.2,2.61082972]
[1761931528917,0.4642,3830.3,3830.2,2.61082972]
[1761931529317,0.4642,3830.3,3830.2,3.05102972]
[1761931529318,0.002,3830.3,3830.2,3.05102972]
[1761931529631,0.002,3830.3,3830.2,3.23992476]
[1761931531356,0.002,3830.3,3830.2,3.70623305]
[1761931531925,0.002,3830.3,3830.2,3.23992476]
[1761931532348,0.002,3830.3,3830.2,3.70623305]
[1761931532564,0.002,3830.3,3830.2,5.07980476]
[1761931533228,0.002,3830.3,3830.2,3.23992476]
[1761931533647,0.4642,3830.3,3830.2,2.61082972]
[1761931533874,0.9232,3830.3,3829.6,1.40068]
[1761931534082,0.4424,3830.1,3829.6,0.001]
[1761931534229,0.459,3830.2,3830.0,2.61091546]
[1761931534428,0.459,3830.2,3829.9,2.61101869]
[1761931534635,0.459,3830.2,3829.6,2.61223877]
[1761931534636,0.6228,3829.7,3829.6,2.61223877]
[1761931534916,0.4622,3829.7,3829.6,0.001]
[1761931535174,0.9212,3829.7,3829.6,2.61223877]
[1761931535528,0.9212,3829.7,3829.6,0.001]
[1761931537742,12.64383528,3829.7,3829.6,0.001]
[1761931537943,10.521036,3829.7,3829.6,0.001]
[1761931538658,11.012645,3829.7,3829.6,0.001]
[1761931539066,10.56282,3829.7,3829.6,0.001]
[1761931539371,7.744738,3829.7,3829.6,0.001]
[1761931539555,13.3291908,3829.7,3829.6,0.001]
[1761931539752,17.34004138,3829.7,3829.6,0.001]
[1761931539954,14.7288708,3829.7,3829.6,0.001]
[1761931540630,28.68714538,3829.7,3829.6,0.001]
[1761931540832,24.49994938,3829.7,3829.6,0.001]
[1761931541332,24.12935738,3829.7,3829.6,0.001]
[1761931541745,32.14073438,3829.7,3829.6,0.001]
[1761931542068,24.68478438,3829.7,3829.6,0.001]
[1761931542275,25.09028838,3829.7,3829.6,0.001]
[1761931542781,25.09028838,3829.7,3829.3,0.001]
[1761931542782,3.01687915,3829.4,3829.3,0.001]
[1761931542971,33.01735658,3828.7,3828.6,0.001]
[1761931543155,21.25143458,3828.7,3828.6,0.001]
[1761931543355,5.355662,3828.7,3828.6,0.001]
[1761931543675,18.78023878,3828.7,3828.6,0.001]
[1761931543832,19.18574278,3828.7,3828.6,0.001]
[1761931544640,33.56165278,3828.7,3828.6,0.001]
[1761931544845,32.79526278,3828.7,3828.6,0.001]
[1761931545231,20.8946752,3828.7,3828.6,0.001]
[1761931545435,18.37161878,3828.7,3828.6,0.001]
[1761931545667,14.07449478,3828.7,3828.6,0.001]
[1761931546638,13.6293082,3828.7,3828.6,0.001]
[1761931546969,5.9679002,3828.7,3828.6,0.001]
[1761931547173,4.273604,3828.7,3828.6,0.001]
[1761931547376,4.337898,3828.7,3828.6,0.001]
[1761931547673,10.38687415,3828.7,3828.6,0.001]
[1761931547968,2.957665,3828.7,3828.6,0.001]
[1761931548459,2.99031315,3828.7,3828.6,0.001]
[1761931548656,7.86229315,3828.7,3828.6,3.30389615]
[1761931548864,0.461,3828.7,3828.6,3.30389615]
[1761931549374,0.1304,3828.7,3828.6,5.91581695]
[1761931549561,0.1304,3828.7,3828.6,3.30389615]
[1761931549982,0.1304,3828.7,3828.6,5.91581695]
[1761931550384,0.1304,3828.7,3828.6,6.35701695]
[1761931550588,7.91499,3828.7,3828.6,3.30389615]
[1761931553589,14.874233,3828.7,3828.6,3.30389615]
[1761931553767,13.267836,3828.7,3828.6,3.30389615]
[1761931554371,14.667516,3828.7,3828.6,3.30389615]
[1761931554565,16.086202,3828.7,3828.6,3.30389615]
[1761931554886,11.950934,3828.7,3828.6,3.30389615]
[1761931555291,1.244699,3828.7,3828.6,0.001]
[1761931555495,0.4532,3828.7,3828.6,0.001]
[1761931555701,2.506262,3828.9,3828.6,0.001]
[1761931555883,5.407083,3828.7,3828.6,0.001]
[1761931556091,0.4532,3828.7,3828.6,0.001]
[1761931556422,23.178343,3828.7,3828.6,0.001]
[1761931556737,12.13755003,3828.7,3828.6,0.001]
[1761931556872,9.816451,3828.7,3828.6,0.001]
[1761931557077,12.42830358,3828.7,3828.6,0.001]
[1761931557392,5.32703658,3828.7,3828.6,0.001]
[1761931557627,17.698656,3828.7,3828.6,0.001]
[1761931557833,20.31050858,3828.7,3828.6,0.001]
[1761931558031,22.60273409,3828.7,3828.6,0.001]
[1761931558639,36.00798409,3828.7,3828.6,0.001]
[1761931559029,32.10568509,3828.7,3828.6,0.001]
[1761931559637,37.61926209,3828.7,3828.6,0.001]
[1761931560438,20.64983351,3828.7,3828.6,0.001]
[1761931560594,35.84643909,3828.7,3828.6,0.001]
[1761931560789,42.43129912,3828.7,3828.6,0.001]
[1761931561325,21.79451351,3828.7,3828.6,0.001]
[1761931561501,17.42856709,3828.7,3828.6,0.001]
[1761931561703,9.35098551,3828.7,3828.6,0.001]
[1761931561906,3.654563,3828.7,3828.6,0.001]
[1761931562254,0.002,3829.7,3828.6,0.8834]
[1761931562411,0.1304,3829.4,3829.1,0.4412]
[1761931562727,14.40651,3829.2,3828.7,2.61184149]
[1761931562928,0.4532,3829.2,3828.6,0.001]
[1761931563128,0.1304,3829.1,3828.6,2.61290273]
[1761931563449,0.002,3829.7,3828.7,0.46731852]
[1761931563594,0.002,3829.7,3829.0,0.4412]
[1761931563800,2.925361,3829.6,3829.2,2.61148736]
[1761931564096,2.009072,3829.0,3828.8,2.61176254]
[1761931564332,9.704932,3829.4,3828.6,0.001]
[1761931564511,0.6366,3828.7,3828.6,0.001]
[1761931565060,3.245266,3828.7,3828.6,0.001]
[1761931565209,8.941995,3828.7,3828.6,0.001]
[1761931565640,6.404855,3828.7,3828.6,0.001]
[1761931566137,1.0934,3828.7,3828.6,0.001]
[1761931566338,11.809127,3828.7,3828.6,0.001]
[1761931566638,16.26856282,3828.7,3828.6,0.001]
[1761931566842,9.66157324,3828.7,3828.6,0.001]
[1761931567150,6.11793124,3828.7,3828.6,0.001]
[1761931567496,0.4532,3828.7,3828.6,0.001]
[1761931567696,0.03264815,3828.7,3828.6,0.001]
[1761931567903,12.09876915,3828.7,3828.6,0.001]
[1761931568096,0.4532,3828.7,3828.6,0.001]
[1761931568331,14.69852115,3828.7,3828.6,0.001]
[1761931568549,14.665873,3828.7,3828.6,0.001]
[1761931568878,16.61086512,3828.7,3828.6,0.001]
[1761931569232,12.62396012,3828.7,3828.6,0.001]
[1761931569436,11.03198812,3828.7,3828.6,0.001]
[1761931569661,11.48878812,3828.7,3828.6,0.001]
[1761931570070,6.46555512,3828.7,3828.6,0.001]
[1761931570268,2.4973,3828.7,3828.6,0.001]
[1761931570490,2.52994815,3828.7,3828.6,0.001]
[1761931570681,2.98674815,3828.7,3828.6,0.001]
[1761931571248,20.51613615,3828.7,3828.6,0.001]
[1761931571455,6.420813,3828.7,3828.6,0.001]
[1761931571654,7.34240077,3828.7,3828.6,0.001]
[1761931572405,3.698457,3828.8,3828.6,0.001]
[1761931572584,13.727315,3828.7,3828.6,0.001]
[1761931572790,14.184115,3828.7,3828.6,0.001]
[1761931573159,14.59384283,3828.7,3828.6,0.001]
[1761931573355,15.50842583,3828.7,3828.6,0.001]
[1761931573561,8.67152383,3828.7,3828.6,0.001]
[1761931573865,9.55701621,3828.7,3828.6,0.001]
[1761931574110,8.21832383,3828.7,3828.6,0.001]
[1761931574262,0.86292783,3828.7,3828.6,0.001]
[1761931574466,10.01185583,3828.7,3828.6,0.001]
[1761931574881,7.53661483,3828.7,3828.6,0.001]
[1761931575088,6.673687,3828.7,3828.6,0.001]
[1761931575292,14.967309,3829.0,3828.6,0.001]
[1761931575634,1.60173364,3828.9,3828.6,0.001]
[1761931575788,3.014047,3829.0,3828.6,0.001]
[1761931575995,0.40982736,3829.1,3828.6,0.001]
[1761931576337,0.40982736,3829.1,3829.0,0.4412]
[1761931576512,0.4117188,3829.3,3829.0,0.4412]
[1761931576513,0.002,3829.3,3829.0,0.4412]
[1761931576673,0.4702,3829.1,3828.8,3.30289615]
[1761931576879,4.730266,3829.0,3828.8,3.30289615]
[1761931577217,0.03264474,3829.1,3828.8,3.30289615]
[1761931577414,6.120266,3829.2,3828.8,5.91463124]
[1761931577580,9.345331,3829.0,3828.8,3.30289615]
[1761931577775,0.002,3829.3,3828.8,3.30289615]
[1761931577976,4.912516,3829.2,3828.8,3.30289615]
[1761931578176,0.03264474,3829.1,3828.8,3.30289615]
[1761931578497,0.03264474,3829.1,3829.0,2.61164794]
[1761931578699,0.002,3829.3,3829.0,3.05284068]
[1761931578899,0.002,3829.3,3829.2,0.5749]
[1761931579304,0.002,3829.3,3829.0,2.61163761]
[1761931579621,0.002,3829.3,3829.2,3.05271154]
[1761931579924,0.002,3829.3,3829.2,0.4412]
[1761931580341,0.002,3829.3,3829.2,3.05271154]
[1761931580702,0.002,3829.3,3829.2,0.4412]
[1761931580902,0.002,3829.3,3829.1,0.1337]
[1761931581329,0.002,3829.3,3828.9,3.30289615]
[1761931581634,0.002,3829.3,3828.9,5.91458742]
[1761931581829,0.002,3829.3,3828.9,3.30289615]
[1761931582032,0.002,3829.3,3829.2,3.18641154]
[1761931582397,0.002,3829.3,3829.2,3.62761154]
[1761931582627,0.002,3829.3,3828.9,3.30289615]
[1761931582834,0.002,3829.3,3829.2,3.05271154]
[1761931583036,0.002,3829.3,3829.2,0.5749]
[1761931583539,0.002,3829.3,3829.2,3.18641154]
[1761931583739,0.002,3829.3,3829.0,3.30289615]
[1761931583942,0.002,3829.3,3829.1,2.61156427]
[1761931584148,0.002,3829.3,3829.0,5.91448538]
[1761931584451,0.002,3829.3,3829.2,4.58609154]
[1761931584797,0.002,3829.3,3829.2,5.05340665]
[1761931584998,0.002,3829.3,3829.2,8.3563028]
[1761931585237,0.002,3829.3,3829.2,8.33018769]
[1761931586405,0.002,3829.3,3829.2,8.46058769]
[1761931586608,0.002,3829.3,3829.2,9.6530731]
[1761931587031,0.002,3829.3,3829.2,4.58609154]
[1761931587230,0.002,3829.3,3829.2,4.61220665]
[1761931587539,0.002,3829.3,3829.2,5.15769154]
[1761931587942,0.002,3829.3,3829.2,4.71649154]
[1761931590620,0.002,3829.3,3828.6,0.001]
[1761931590939,0.002,3829.3,3829.2,3.18641154]
[1761931591353,0.002,3829.3,3829.2,3.62761154]
[1761931591527,0.002,3829.3,3829.2,6.93050769]
[1761931592664,0.002,3829.7,3829.2,6.93050769]
[1761931592665,0.002,3829.7,3829.6,2.61123877]
[1761931592811,0.002,3829.7,3829.6,3.05243877]
[1761931593250,0.002,3829.7,3829.6,3.99302296]
[1761931593549,0.002,3829.7,3829.6,2.61123877]
[1761931593854,0.002,3829.7,3829.6,3.05243877]
[1761931594032,0.002,3829.7,3829.6,0.4412]
[1761931594233,0.002,3829.7,3829.6,3.05243877]
[1761931594449,0.002,3829.7,3829.4,5.91224652]
[1761931594450,0.002,3829.7,3829.4,3.30089615]
[1761931594668,0.002,3829.7,3829.6,2.61123877]
[1761931595426,0.002,3829.7,3829.6,3.05243877]
[1761931595934,0.002,3829.7,3829.6,2.61123877]
[1761931596146,0.002,3829.7,3829.4,3.30089615]
[1761931596147,0.4835,3829.7,3829.4,3.30089615]
[1761931596464,0.002,3829.7,3829.4,3.30089615]
[1761931596650,0.002,3829.7,3829.6,3.05243877]
[1761931596867,0.002,3829.7,3829.6,4.45211877]
[1761931597030,0.002,3829.7,3829.6,4.89331877]
[1761931597226,0.002,3829.7,3829.6,4.45211877]
[1761931597627,0.002,3829.7,3829.6,4.89331877]
[1761931597827,0.002,3829.7,3829.6,5.62938444]
[1761931598057,0.002,3829.7,3829.6,6.07058444]
[1761931600435,0.002,3829.7,3829.6,15.74148059]
[1761931600634,0.002,3829.7,3829.6,16.27738459]
[1761931600868,0.002,3829.7,3829.6,6.60648844]
[1761931601365,1e-08,3830.1,3830.0,3.05216605]
[1761931601556,1e-08,3830.1,3830.0,4.40029737]
[1761931601958,1e-08,3830.1,3830.0,6.20548137]
[1761931602157,1e-08,3830.1,3830.0,6.17937171]
[1761931603148,1e-08,3830.1,3830.0,5.77386771]
[1761931603779,1e-08,3830.7,3830.6,3.45726109]
[1761931603990,1e-08,3830.7,3830.6,5.29814109]
[1761931607385,1e-08,3830.7,3830.6,4.89263709]
[1761931607554,1e-08,3830.7,3830.6,4.91874266]
[1761931607757,1e-08,3830.7,3830.6,5.29814109]
[1761931607963,1e-08,3830.7,3830.6,6.08901919]
[1761931609356,0.01,3831.7,3830.6,6.08901919]
[1761931609357,0.01,3831.7,3831.6,2.60987576]
[1761931609552,0.01,3831.7,3831.6,4.45075576]
[1761931609775,0.01,3831.7,3831.6,4.00955576]
[1761931610571,0.01,3831.7,3831.6,4.45075576]
[1761931610909,0.01,3831.7,3831.6,4.00955576]
[1761931611119,0.485,3831.7,3831.6,2.60987576]
[1761931611278,0.01,3831.7,3831.6,2.60987576]
[1761931611706,0.948,3831.7,3831.6,2.60987576]
[1761931612205,0.948,3831.7,3830.9,0.1637]